[Event "37th ECCC 2022"]
[Site "Mayrhofen"]
[Date "2022.10.05"]
[Round "3.23"]
[White "Predojevic, Borki"]
[Black "Zajogin, Alexander"]
[Result "1-0"]
[ECO "C65"]
[WhiteElo "2584"]
[BlackElo "2409"]
[Annotator "TA"]
[PlyCount "97"]
[EventDate "2022.10.03"]
[EventType "team-tourn"]
[EventCountry "AUT"]
[SourceTitle "playchess.com"]
[Source "ChessBase"]
[SourceQuality "1"]
[TimeControl "40/5400+30:1800+30"]

{[%evp 9,97,11,12,12,28,6,13,13,15,8,12,12,13,14,22,15,13,14,21,17,37,26,32,35,53,39,66,56,62,70,62,63,75,66,68,63,69,62,60,59,65,56,87,75,106,106,94,109,101,104,93,81,86,86,101,90,89,86,86,86,121,114,115,121,153,139,275,285,619,614,544,516,1255,247,250,234,352,350,605,581,29972,12842,29981,29982,29981,29982,29981,29982,29997,29995]} 1. e4 {[%emt 0:00:04]} e5 {[%emt 0:00:07]} 2. Nf3 {[%emt 0:00:05]} Nc6 {[%emt 0:00:09]} 3. Bb5 {[%emt 0:00:04]} Nf6 {[%emt 0:00:16]} 4. d3 {[%emt 0:00:05][%cal Bd2d3,Bd3d4][%mdl 32]} Bc5 {[%emt 0:00:13]} 5. Bxc6 {[%emt 0:00:09]} dxc6 {[%emt 0:00:09]} 6. O-O {[%emt 0:00:09] C65: Ruy Lopez: Berlin Defence (3...Nf6), unusual lines and 4 0-0 Bc5.} Nd7 {[%emt 0:00:30]} 7. c3 {[%emt 0:02:46]} O-O {[%emt 0:02:31]} 8. d4 {[%emt 0:00:26] The position is equal.} Bd6 {[%emt 0:00:31]} 9. Bg5 {[%emt 0:00:18]} f6 {[%emt 0:00:24] 9...f6 is better than 9...Qe8.} 10. Bh4 {[%emt 0:00:06]} Qe7 {[%emt 0:08:40]} 11. Nbd2 {[%emt 0:03:01]} Re8 {[%emt 0:01:05]} 12. Qc2 {[%emt 0:20:59]} Qf7 {[%emt 0:29:58]} 13. Bg3 {[%emt 0:00:20]} b6 {[%emt 0:15:15][%cal Bb7b6,Bb6b5][%mdl 32]} 14. Rfe1 {[%emt 0:11:05] [#]} Nf8 $146 {[%emt 0:16:31]} ({Predecessor:} 14... a5 15. Nf1 Nf8 16. Ne3 Ng6 17. Nf5 Be6 18. b3 a4 19. bxa4 Ra6 20. dxe5 Bxe5 21. Bxe5 Nxe5 {½-½ (33) Lagno,K (2549)-Lei,T (2483) China 2019}) 15. Qa4 {[%emt 0:14:54]} b5 {[%emt 0:07:11]} 16. Qc2 {[%emt 0:00:40]} a5 {[%emt 0:00:37]} 17. a4 {[%emt 0:12:13]} Bd7 {[%emt 0:02:55]} 18. dxe5 {[%emt 0:06:48]} fxe5 {[%emt 0:04:34]} 19. c4 {[%emt 0:00:06]} Ng6 {[%emt 0:02:51]} 20. axb5 {[%emt 0:04:21]} (20. cxb5 {with more complications.} cxb5 21. Ng5 Qe7 22. Qb3+) 20... cxb5 {[%emt 0:00:17]} 21. cxb5 {[%emt 0:00:05]} h6 {[%emt 0:01:03] Prevents Ng5.} 22. Nc4 {[%emt 0:02:33] And now b6 would win.} Bxb5 {[%emt 0:02:23]} 23. Nxd6 {[%emt 0:00:44] White is more active.} cxd6 {[%emt 0:00:06]} 24. Qd2 {[%emt 0:00:02][%csl LRa5,LRd6]} Ra6 {[%emt 0:00:46]} 25. Rxa5 {[%emt 0:00:34]} Rxa5 {[%emt 0:00:59]} 26. Qxa5 {[%emt 0:00:05]} Qb7 {[%emt 0:00:06]} 27. Qb4 {[%emt 0:06:40]} Qc6 {[%emt 0:00:39]} 28. h4 {[%emt 0:05:30]} Nh8 {[%emt 0:02:03]} 29. Nd2 {[%emt 0:04:30][%cal Bf3d2,Bd2b1,Bb1c3][%mdl 32]} Nf7 {[%emt 0:00:25]} 30. Nb1 {[%emt 0:00:43]} Qc4 {[%emt 0:00:46]} 31. Qd2 {[%emt 0:01:49]} Bc6 {[%emt 0:00:32]} 32. Nc3 {[%emt 0:01:58]} Rb8 {[%emt 0:00:17]} 33. Re2 {[%emt 0:00:07]} (33. f3 {feels hotter.} Qb4 34. Re2 Bd7 35. Qc1) 33... Qc5 {[%emt 0:00:48]} 34. Kh2 {[%emt 0:00:59]} Ra8 {[%emt 0:00:18]} 35. Qd1 {[%emt 0:00:25]} Qc4 {[%emt 0:00:21]} 36. f3 {[%emt 0:00:26]} g6 {[%emt 0:00:23]} 37. Rd2 {[%emt 0:00:27] Hoping for Rxd6.} Rb8 {[%emt 0:00:20]} (37... Qb4 $16 {was necessary.} 38. Bf2 Kg7) 38. Rxd6 $18 {[%emt 0:01:59]} Rxb2 $2 {[%emt 0:00:05]} (38... Kg7 39. Qd2 Re8) 39. Rxg6+ {[%emt 0:00:05]} Kh7 {[%emt 0:00:03]} 40. Rf6 {[%emt 0:00:07][%cal Od1a1]} Kg7 {[%emt 0:00:34] [#]} (40... Be8 $142 41. Qc1 Qb3 42. Bxe5 Qc2 43. Qxc2 Rxc2) 41. Rxf7+ $1 {[%emt 0:05:09]} Kxf7 {[%emt 0:00:22]} 42. Qc1 {[%emt 0:02:04]} ({Resist} 42. Bxe5 Qe6 43. Bg3 Qd7) 42... Rb5 {[%emt 0:04:34]} (42... Rb7 {keeps fighting.} 43. Bxe5 Kg6) 43. h5 {[%emt 0:09:27][%cal Oc1h6]} ({Much less strong is} 43. Qxh6 Qxc3 44. h5 Qc4 $18) 43... Ra5 $2 {[%emt 0:12:59] [#]} (43... Rb7 44. Bxe5 Qc5) 44. Qxh6 $1 {[%emt 0:06:52] Threatens to win with Qg6+.} Qxc3 {[%emt 0:00:35]} (44... Qe6 45. Qh7+) 45. Bh4 {[%emt 0:01:50] White wants to mate with Qh7+.} Qc5 {[%emt 0:03:05]} 46. Qf6+ {[%emt 0:02:47] White mates.} Ke8 {[%emt 0:03:20]} 47. Qe6+ {[%emt 0:00:08]} Kf8 {[%emt 0:00:03]} 48. Bg5 {[%emt 0:00:21][%cal Rg5h6]} Kg7 {[%emt 0:00:11]} 49. h6+ {[%emt 0:00:24] Weighted Error Value: White=0.11 (very precise) /Black=0.55} 1-0

[Event "37th ECCC 2022"]
[Site "Mayrhofen"]
[Date "2022.10.05"]
[Round "3.24"]
[White "Rafiee, Makan"]
[Black "Sebenik, Matej"]
[Result "0-1"]
[ECO "B33"]
[WhiteElo "2316"]
[BlackElo "2518"]
[Annotator "TA"]
[PlyCount "68"]
[EventDate "2022.10.03"]
[EventType "team-tourn"]
[EventCountry "AUT"]
[SourceTitle "playchess.com"]
[Source "ChessBase"]
[SourceQuality "1"]
[TimeControl "40/5400+30:1800+30"]

{[%evp 27,68,10,6,12,10,8,6,0,22,0,20,20,16,21,20,24,17,25,31,29,18,-29,-58,-41,-46,-42,-32,-41,-43,-46,-27,-478,-456,-408,-408,-1195,-1220,-1093,-1156,-2703,-2171,-4927,-4810]} 1. e4 {[%emt 0:00:03]} c5 {[%emt 0:00:24]} 2. Nf3 {[%emt 0:00:06][%cal Bg1f3,Bf3d4,Bd4b5][%mdl 32]} Nc6 {[%emt 0:00:05]} 3. d4 {[%emt 0:00:10]} cxd4 {[%emt 0:00:05]} 4. Nxd4 {[%emt 0:00:05]} Nf6 {[%emt 0:00:26]} 5. Nc3 {[%emt 0:00:07]} e5 {[%emt 0:00:28]} 6. Ndb5 {[%emt 0:00:07]} d6 {[%emt 0:00:07]} 7. Bg5 {[%emt 0:00:33]} a6 {[%emt 0:00:08]} 8. Na3 {[%emt 0:00:06]} b5 {[%emt 0:00:07]} 9. Bxf6 {[%emt 0:01:36]} gxf6 {[%emt 0:00:06]} 10. Nd5 {[%emt 0:00:06]} f5 {[%emt 0:00:25]} 11. g3 {[%emt 0:00:29]} fxe4 {[%emt 0:01:06]} 12. Bg2 {[%emt 0:00:06]} Bg7 {[%emt 0:00:08]} 13. Bxe4 {[%emt 0:00:30]} Be6 {[%emt 0:00:07]} 14. Qh5 {[%emt 0:04:53]} Rc8 {[%emt 0:00:52]} 15. O-O {[%emt 0:10:29] B33: Sicilian: Pelikan and Sveshnikov Variations.} Ne7 {[%emt 0:02:36]} 16. Nxe7 {[%emt 0:00:44]} Qxe7 {[%emt 0:00:08]} 17. Rad1 {[%emt 0:00:28] The position is equal.} h6 {[%emt 0:01:57]} 18. Nb1 {[%emt 0:11:52]} b4 {[%emt 0:08:41] Inhibits Nc3.} 19. c3 {[%emt 0:05:56]} a5 {[%emt 0:02:26] [#]} 20. a3 $146 {[%emt 0:00:29]} ({Predecessor:} 20. cxb4 axb4 21. a3 bxa3 22. Nxa3 Qd7 23. Qf3 O-O 24. Rd2 f5 25. Bd5 e4 26. Qb3 Bxd5 27. Qxd5+ {1-0 (47) Cuenca Jimenez,J (2526)-Martinez Piqueras,C (2141) Linares 2015}) 20... O-O {[%emt 0:35:55]} 21. axb4 {[%emt 0:29:39]} axb4 {[%emt 0:00:10]} 22. cxb4 {[%emt 0:00:08]} Rc4 {[%emt 0:00:05]} 23. Nc3 {[%emt 0:00:22]} Rxb4 {[%emt 0:00:12]} 24. Rd2 {[%emt 0:00:53] [#]} (24. Nd5 {deserves consideration.} Bxd5 25. Bxd5) 24... Rxe4 $1 $11 {[%emt 0:16:45]} 25. Nxe4 {[%emt 0:00:12]} d5 {[%emt 0:00:03]} 26. Nc3 {[%emt 0:00:23]} d4 $36 {[%emt 0:00:03][%mdl 2048] Black is pushing.} 27. Ne2 {[%emt 0:02:02]} Qb4 {[%emt 0:03:45]} 28. Rdd1 {[%emt 0:09:15]} Qxb2 {[%emt 0:00:13] Strongly threatening ...Bc4.} 29. f4 $2 {[%emt 0:01:51][%mdl 8192] Loses the game.} (29. Nc1 $1 $11) 29... Bc4 $19 {[%emt 0:06:04]} 30. Rf2 {[%emt 0:01:03][%cal Oe2d4] [#] Hoping for Nxd4!} e4 {[%emt 0:04:08][%cal Be5e4,Be4e3,Be3e2][%mdl 32]} 31. f5 {[%emt 0:04:38]} (31. Nc1 $142 Qc3 32. f5) 31... e3 {[%emt 0:02:36] Black is clearly winning.} 32. Rg2 {[%emt 0:01:10]} d3 {[%emt 0:01:50][%cal Bd4d3,Bd3d2][%mdl 32] And now ...Ra8 would win.} 33. Nf4 {[%emt 0:07:45]} e2 {[%emt 0:00:48][%cal Ob2d2] ( -> ...Qd2!)} 34. Re1 {[%emt 0:00:03]} d2 {[%emt 0:02:33] Weighted Error Value: White=1.20/Black=0.04 (flawless)} 0-1

[Event "37th ECCC 2022"]
[Site "Mayrhofen"]
[Date "2022.10.05"]
[Round "3.25"]
[White "Can, Emre"]
[Black "Maghsoodloo, Parham"]
[Result "1-0"]
[ECO "E04"]
[WhiteElo "2592"]
[BlackElo "2721"]
[Annotator "TA"]
[PlyCount "59"]
[EventDate "2022.10.03"]
[EventType "team-tourn"]
[EventCountry "AUT"]
[SourceTitle "playchess.com"]
[Source "ChessBase"]
[SourceQuality "1"]
[TimeControl "40/5400+30:1800+30"]

{[%evp 14,59,0,10,4,8,14,-8,-10,0,3,-27,0,-4,33,41,77,87,105,106,106,95,101,111,113,119,119,119,119,116,116,113,118,120,451,447,412,422,463,456,752,725,745,741,727,715,752,739]} 1. d4 {[%emt 0:00:10]} Nf6 {[%emt 0:00:25]} 2. c4 {[%emt 0:00:27]} e6 {[%emt 0:00:09]} 3. g3 {[%emt 0:00:13]} d5 {[%emt 0:00:06]} 4. Bg2 {[%emt 0:00:29]} dxc4 {[%emt 0:00:06]} 5. Nf3 {[%emt 0:00:14]} a6 {[%emt 0:00:07]} 6. O-O {[%emt 0:00:55]} Nc6 {[%emt 0:00:06]} 7. a4 {[%emt 0:00:33]} Rb8 {[%emt 0:06:02]} 8. a5 {[%emt 0:00:11]} b5 {[%emt 0:07:34] E04: Open Catalan: 5 Nf3.} 9. axb6 $1 {[%emt 0:00:15]} cxb6 {[%emt 0:00:19]} 10. Bf4 {[%emt 0:00:14] Black must now prevent Nfd2.} Bd6 {[%emt 0:00:07] The position is equal.} 11. Ne5 {[%emt 0:00:05]} Ne7 {[%emt 0:07:29]} 12. Bc6+ $1 {[%emt 0:00:08][%mdl 4] is recently more successful than 12.Nxc4.} Kf8 {[%emt 0:00:44]} 13. Bg2 {[%emt 0:00:06]} Nfd5 {[%emt 0:02:44][%cal Bf6d5,Bd5b4,Bb4d3][%mdl 32]} 14. Bd2 {[%emt 0:00:14] [#]} Qc7 $146 {[%emt 0:04:27]} ({Predecessor:} 14... b5 15. b3 f6 16. bxc4 fxe5 17. cxd5 exd5 18. Bg5 Bb7 19. Nc3 h6 20. Bxe7+ Bxe7 21. dxe5 {1-0 (50) Giri,A (2776)-Nepomniachtchi,I (2792) Zagreb 2021}) 15. e4 {[%emt 0:09:02]} Nb4 {[%emt 0:03:55]} 16. Na3 $40 {[%emt 0:14:58][%mdl 128] White is out for blood. White is more active.} b5 {[%emt 0:00:21] [#]} 17. Nexc4 $1 {[%emt 0:00:09][%mdl 512]} bxc4 {[%emt 0:00:08]} 18. e5 {[%emt 0:00:03]} Bxe5 {[%emt 0:04:34]} 19. dxe5 {[%emt 0:01:46][%cal Oa3c4]} Nd3 {[%emt 0:00:27] [#]} 20. Ba5 $1 {[%emt 0:12:06][%cal Bd2a5,Ba5c7,Bc7d6][%mdl 544]} Qc5 {[%emt 0:07:28] [#]} 21. Nxc4 $1 {[%emt 0:15:34][%mdl 512]} Qxc4 {[%emt 0:01:42]} 22. Ra3 {[%emt 0:00:06][%cal Ba1a3,Ba3d3,Bd3c3][%mdl 32]} Nd5 {[%emt 0:08:35]} 23. Rxd3 {[%emt 0:00:32][%cal Rg2d5]} ({Don't do} 23. Qxd3 Qxd3 24. Rxd3 Rxb2 $14) 23... h6 $2 {[%emt 0:07:57][%mdl 8192] [#] Black cannot hold the game after this.} (23... Kg8 $16 24. Rd4 (24. Bxd5 exd5 25. Rxd5 h6 $16) 24... Qb3 25. Bxd5 exd5) 24. Rc3 $1 $18 {[%emt 0:11:23][%mdl 512]} Qb5 {[%emt 0:01:57]} 25. Bc7 {[%emt 0:00:47] This bishop pair is nice.} Ra8 {[%emt 0:00:05] White is clearly winning.} 26. Rc5 {[%emt 0:02:35]} Qb7 {[%emt 0:06:37]} (26... Qd7 $142 27. Bxd5 exd5 28. Rxd5 (28. Bd6+ Kg8 $16) 28... Qxc7) 27. Bd6+ {[%emt 0:01:34]} (27. Bxd5 exd5 28. Qxd5 Qxd5 29. Rxd5 Bh3 $16) 27... Kg8 {[%emt 0:00:09]} 28. Rxd5 {[%emt 0:00:42]} ({Weaker is} 28. Bxd5 exd5 29. Qxd5 Qxd5 30. Rxd5 Kh7 $16) 28... exd5 {[%emt 0:00:05]} 29. Bxd5 {[%emt 0:00:05]} Qa7 {[%emt 0:00:04]} 30. Qf3 {[%emt 0:00:12] Weighted Error Value: White=0.03 (flawless) /Black=0.30} 1-0

[Event "37th ECCC 2022"]
[Site "Mayrhofen"]
[Date "2022.10.05"]
[Round "3.26"]
[White "Van Foreest, Jorden"]
[Black "Sanal, Vahap"]
[Result "1/2-1/2"]
[ECO "C45"]
[WhiteElo "2694"]
[BlackElo "2595"]
[Annotator "TA"]
[PlyCount "93"]
[EventDate "2022.10.03"]
[EventType "team-tourn"]
[EventCountry "AUT"]
[SourceTitle "playchess.com"]
[Source "ChessBase"]
[SourceQuality "1"]
[TimeControl "40/5400+30:1800+30"]

{[%evp 11,93,-11,12,0,0,0,1,0,29,30,35,22,68,67,80,75,68,58,75,59,66,64,127,138,134,142,130,141,116,85,129,127,118,96,103,105,161,151,147,157,148,160,147,133,82,0,0,0,0,0,3,8,21,22,31,40,103,108,104,-12,111,96,102,103,100,114,112,0,0,0,0,0,0,0,0,0,0,0,0,0,0,0,0,0]} 1. e4 {[%emt 0:00:04]} e5 {[%emt 0:00:06]} 2. Nf3 {[%emt 0:00:08]} Nc6 {[%emt 0:00:06]} 3. d4 {[%emt 0:00:13]} exd4 {[%emt 0:00:17]} 4. Nxd4 {[%emt 0:00:08]} Bc5 {[%emt 0:00:50]} 5. Nb3 {[%emt 0:00:25]} Bb6 {[%emt 0:00:17]} 6. Nc3 {[%emt 0:00:22]} d6 {[%emt 0:01:57]} 7. Bf4 {[%emt 0:00:27] C45: Scotch Game.} Nf6 {[%emt 0:04:12]} 8. Qd2 {[%emt 0:03:58]} a5 {[%emt 0:02:41]} 9. a4 {[%emt 0:05:21] [#]} Nb4 $146 {[%emt 0:02:41]} ({Predecessor:} 9... O-O 10. O-O-O Be6 11. f3 Nb4 12. g4 d5 13. g5 Nh5 14. Be3 dxe4 15. Bxb6 cxb6 16. fxe4 {1-0 (45) Lintchevski,D (2561)-Maiorov,N (2446) Cheliabinsk 2021}) 10. O-O-O {[%emt 0:03:23]} O-O {[%emt 0:11:53][%cal Od6d5]} 11. f3 {[%emt 0:03:06]} Nd7 {[%emt 0:04:46]} (11... Be6 $11) 12. h4 $14 {[%emt 0:04:07][%cal Bh2h4,Bh4h5,Bh5h6][%mdl 32]} Nc5 {[%emt 0:01:19]} 13. Nxc5 {[%emt 0:01:43]} Bxc5 {[%emt 0:00:07]} 14. h5 {[%emt 0:03:11]} Be6 {[%emt 0:01:32]} 15. h6 {[%emt 0:01:20] And now hxg7 would win.} g6 {[%emt 0:00:15]} 16. Kb1 {[%emt 0:04:57]} Qe7 {[%emt 0:09:04]} ({Black should play} 16... f6 $14) 17. Nd5 $1 $16 {[%emt 0:06:51]} Nxd5 {[%emt 0:01:16]} 18. exd5 {[%emt 0:00:06]} Bd7 {[%emt 0:00:59]} 19. Re1 $1 {[%emt 0:07:18]} (19. Qc3 $6 f6 $14) 19... Qd8 {[%emt 0:02:41]} 20. Be3 {[%emt 0:10:22] White is more active.} (20. Qc3 f6 21. Qb3 Bf2 $14) 20... Bxe3 {[%emt 0:04:43]} 21. Rxe3 {[%emt 0:00:11]} Qf6 {[%emt 0:00:31]} 22. Bb5 {[%emt 0:00:43]} c6 {[%emt 0:00:32]} 23. Bc4 {[%emt 0:02:52]} cxd5 {[%emt 0:05:28]} (23... c5 $16) 24. Bxd5 $18 {[%emt 0:01:50]} (24. Qxd5 $6 Bxa4 25. Bb5 (25. Qxb7 $2 Rab8 $19) 25... Bxb5 26. Qxb5 Qd4 $11) 24... Bxa4 {[%emt 0:00:43]} 25. g4 $1 {[%emt 0:02:52][%cal Bg2g4,Bg4g5][%mdl 32] g5 is the strong threat.} Rac8 {[%emt 0:18:13]} 26. b3 {[%emt 0:01:11]} Bd7 {[%emt 0:00:56]} 27. g5 {[%emt 0:00:30]} Qf4 {[%emt 0:01:16]} 28. Bxb7 {[%emt 0:13:26]} (28. Qc1 $16 {[%cal Oc1b2] Qb2! would kill now.} Kh8 29. Re7 (29. Bxb7 Rb8 $14) 29... Qxc1+ 30. Kxc1) 28... Rc5 $11 {[%emt 0:03:02]} 29. Rd3 {[%emt 0:01:15]} Qxd2 {[%emt 0:01:36]} 30. Rxd2 {[%emt 0:00:05]} Rxg5 {[%emt 0:02:41]} 31. Rxd6 {[%emt 0:00:04]} Be6 {[%emt 0:00:19]} 32. Kb2 {[%emt 0:01:06]} Rb8 {[%emt 0:07:20]} 33. Rhd1 {[%emt 0:01:22] White threatens Rd8+ and mate.} Kf8 {[%emt 0:00:08]} (33... Rf8 $1 $14) 34. Rd8+ $1 $16 {[%emt 0:06:23]} Rxd8 {[%emt 0:00:06]} 35. Rxd8+ {[%emt 0:00:02][%mdl 4096] Endgame KRB-KRB} Ke7 {[%emt 0:00:03] [#]} 36. Rh8 {[%emt 0:00:04]} Rb5 {[%emt 0:02:45]} 37. Be4 {[%emt 0:00:17]} a4 {[%emt 0:01:25][%cal Ra4b3] [#]} 38. Bc6 $1 {[%emt 0:00:23]} ({Of course not} 38. Rxh7 axb3 39. Rh8 bxc2+ 40. Kxc2 Rh5 $11) 38... Rh5 {[%emt 0:01:15]} 39. bxa4 {[%emt 0:00:27]} ({Reject} 39. Bxa4 Rxh6 40. Kc3 Kd6 $15) (39. Rxh7 $16 axb3 40. cxb3) 39... Rxh6 $11 {[%emt 0:03:58] The position is equal.} 40. a5 {[%emt 0:00:17]} Rh5 {[%emt 0:00:19]} 41. a6 {[%emt 0:30:17]} Ra5 {[%emt 0:30:12]} 42. Bb7 {[%emt 0:00:24]} h5 {[%emt 0:02:15]} 43. f4 {[%emt 0:03:25]} Kd6 {[%emt 0:02:22]} 44. Rh7 {[%emt 0:02:07]} Kc7 {[%emt 0:00:00]} 45. Be4 {[%emt 0:00:00]} Kb6 {[%emt 0:00:00]} 46. Bd3 {[%emt 0:00:00]} Ra4 {[%emt 0:00:00]} 47. f5 {[%emt 0:00:00] Weighted Error Value: White=0.07 (flawless) /Black=0.09 (flawless)} 1/2-1/2